bitfinex/quotes_SOLUSD_20240606
["timestamp","ask_amount","ask_price","bid_price","bid_amount"]
[1717680028213,5.8,172.86,172.83,5.784]
[1717680029025,5.8,172.86,172.82,20.0]
[1717680029529,5.8,172.86,172.83,5.784]
[1717680030125,5.8,172.86,172.82,20.0]
[1717680031931,5.8,172.86,172.83,5.784]
[1717680033132,5.8,172.85,172.83,5.784]
[1717680033320,5.8,172.85,172.79,125.784]
[1717680033641,5.8,172.84,172.8,20.17]
[1717680033811,5.8,172.84,172.81,5.784]
[1717680034718,5.8,172.83,172.81,5.784]
[1717680034931,5.8,172.83,172.77,120.0]
[1717680035119,6.2241,172.88,172.79,120.0]
[1717680035319,5.8,172.84,172.79,120.0]
[1717680035524,5.8,172.84,172.79,125.784]
[1717680036342,5.8,172.84,172.79,120.0]
[1717680036643,5.8,172.83,172.78,0.17]
[1717680036851,5.8,172.83,172.78,20.34]
[1717680037345,5.8,172.83,172.79,5.784]
[1717680046233,5.8,172.82,172.79,5.784]
[1717680047455,5.8,172.83,172.79,5.784]
[1717680048071,5.8,172.82,172.79,5.784]
[1717680051063,5.8,172.82,172.71,22.02161527]
[1717680051064,5.8,172.8,172.72,120.0]
[1717680051359,5.8,172.78,172.73,5.784]
[1717680051739,5.8,172.78,172.71,5.8]
[1717680053085,5.8,172.78,172.72,120.34]
[1717680053258,5.8,172.78,172.72,120.0]
[1717680053963,5.8,172.78,172.71,5.8]
[1717680054155,5.8,172.78,172.72,20.0]
[1717680054354,5.8,172.77,172.72,20.0]
[1717680056061,5.8,172.78,172.72,20.0]
[1717680056947,5.8,172.78,172.72,140.0]
[1717680057155,5.8,172.79,172.72,145.8]
[1717680057657,2.141,172.82,172.72,140.0]
[1717680057970,5.8,172.79,172.73,5.8]
[1717680058163,5.8,172.79,172.74,20.0]
[1717680058962,2.141,172.82,172.74,20.0]
[1717680059470,5.8,172.79,172.74,20.0]
[1717680061167,5.8,172.78,172.74,20.0]
[1717680061471,5.8,172.78,172.73,20.0]
[1717680062269,2.141,172.82,172.73,20.0]
[1717680062567,5.8,172.79,172.73,25.8]
[1717680062748,2.141,172.82,172.73,20.0]
[1717680063084,5.8,172.78,172.73,20.0]
[1717680064454,5.8,172.77,172.73,20.0]
[1717680066078,5.8,172.77,172.72,20.0]
[1717680067485,5.8,172.77,172.72,140.0]
[1717680068081,5.8,172.78,172.72,145.8]
[1717680069977,5.8,172.77,172.72,140.0]
[1717680070963,5.8,172.76,172.72,20.0]
[1717680071166,5.8,172.76,172.71,20.0]
[1717680071565,5.8,172.76,172.7,125.8]
[1717680071765,5.8,172.76,172.7,120.0]
[1717680071994,0.35245307,172.79,172.7,120.0]
[1717680072154,5.8,172.75,172.7,120.0]
[1717680072977,5.8,172.75,172.71,20.0]
[1717680073359,5.8,172.77,172.71,20.0]
[1717680074072,5.8,172.76,172.71,20.0]
[1717680075366,5.8,172.77,172.71,25.8]
[1717680077489,8.5918,172.8,172.72,5.8]
[1717680077786,5.8,172.78,172.72,5.8]
[1717680078684,5.8,172.77,172.71,20.0]
[1717680078893,5.8,172.77,172.71,25.8]
[1717680079105,5.8,172.76,172.71,20.0]
[1717680080084,5.8,172.77,172.71,25.8]
[1717680081884,5.8,172.78,172.71,25.8]
[1717680083498,8.5918,172.8,172.72,5.8]
[1717680083802,5.8,172.81,172.74,5.8]
[1717680084005,2.1408,172.83,172.75,5.8]
[1717680084312,6.5864,172.84,172.74,120.17]
[1717680084517,14.9816,172.88,172.77,5.8]
[1717680084518,2.1406,172.85,172.77,5.8]
[1717680084689,2.1406,172.85,172.76,125.8]
[1717680084894,5.8,172.83,172.77,20.0]
[1717680085612,2.1406,172.85,172.77,20.0]
[1717680085807,5.8,172.83,172.77,20.0]
[1717680086607,5.8,172.83,172.77,25.8]
[1717680087914,2.1405,172.85,172.77,25.8]
[1717680088120,5.8,172.82,172.77,20.0]
[1717680088414,4.2809,172.86,172.75,20.34]
[1717680088616,5.8,172.8,172.75,20.17]
[1717680092618,2.1403,172.87,172.78,125.8]
[1717680092807,5.8,172.85,172.78,125.8]
[1717680093003,5.8,172.85,172.79,5.8]
[1717680094101,5.8,172.86,172.8,5.8]
[1717680095421,5.8,172.85,172.78,120.0]
[1717680095630,5.8,172.85,172.79,20.0]
[1717680096125,6.0374,172.88,172.79,20.0]
[1717680096306,2.1402,172.88,172.79,25.8]
[1717680096508,5.8,172.85,172.79,25.8]
[1717680097630,2.1403,172.87,172.79,25.8]
[1717680097825,5.8,172.85,172.79,25.8]
[1717680100628,5.8,172.86,172.81,120.0]
[1717680101018,2.1402,172.88,172.81,120.0]
[1717680101326,5.8,172.88,172.82,25.97]
[1717680101712,5.8,172.88,172.82,20.17]
[1717680101911,5.8,172.87,172.82,20.17]
[1717680102215,5.8,172.87,172.82,26.2435]
[1717680103433,5.8,172.86,172.82,20.0]
[1717680104418,5.8,172.86,172.82,26.6159]
[1717680105015,2.1399,172.91,172.82,26.6159]
[1717680105226,5.8,172.87,172.82,26.6159]
[1717680105527,2.1399,172.91,172.83,120.0]
[1717680105711,5.8,172.89,172.83,126.6433]
[1717680106404,5.8,172.88,172.84,21.2502]
[1717680106724,5.8,172.9,172.86,6.1867]
[1717680109041,2.1394,172.94,172.86,6.1867]
[1717680109245,2.1392,172.96,172.87,120.0]
[1717680109435,5.8,172.91,172.87,120.0]
[1717680109948,5.8,172.92,172.88,1.15613713]
[1717680110853,5.8,172.93,172.88,7.20123713]
[1717680111436,2.1392,172.96,172.89,1.15607025]
[1717680111641,5.8,172.93,172.89,1.15607025]
[1717680112146,2.1392,172.96,172.89,121.15607025]
[1717680112462,2.1389,172.99,172.91,120.0]
[1717680112635,5.8,172.95,172.92,1.15586967]
[1717680113133,5.8,172.95,172.92,2.3126066]
[1717680113335,5.8,172.95,172.93,2.31247286]
[1717680114366,2.1389,172.99,172.93,2.31247286]
[1717680114734,5.8,172.95,172.93,2.31247286]
[1717680114959,5.8,172.96,172.93,2.31247286]
[1717680115348,5.8,172.96,172.92,20.0]
[1717680115948,5.8,172.95,172.92,20.0]
[1717680117744,5.8,172.94,172.92,20.0]
[1717680119962,5.8,172.94,172.9,26.7079]
[1717680120134,5.8,172.94,172.91,136.6162]
[1717680120334,5.8,172.94,172.92,20.0]
[1717680122241,2.1389,172.99,172.92,20.0]
[1717680122457,5.8,172.95,172.92,20.0]
[1717680122643,5.8,172.95,172.93,120.0]
[1717680122964,5.8,172.96,172.93,126.1915]
[1717680123254,5.8,172.97,172.93,126.1915]
[1717680124166,2.1388,172.99,172.93,126.1915]
[1717680124167,5.8,172.96,172.93,126.1915]
[1717680124468,5.8,172.95,172.93,126.1915]
[1717680124769,5.8,172.95,172.92,20.17]
[1717680124938,2.139,172.98,172.89,126.1178]
[1717680125136,7.939,172.98,172.89,126.1178]
[1717680125352,5.8,172.92,172.9,20.0]
[1717680127966,5.8,172.91,172.88,20.0]
[1717680128182,5.8,172.91,172.87,135.9604]
[1717680128470,5.8,172.9,172.85,126.2048]
[1717680128839,5.8,172.89,172.85,120.0]
[1717680129044,5.8,172.88,172.83,136.4471]
[1717680129244,5.8,172.88,172.83,142.6519]
[1717680129666,5.8,172.87,172.83,142.6519]
[1717680129849,5.8,172.88,172.83,142.6519]
[1717680130668,5.8,172.87,172.83,126.2048]
[1717680130872,5.8,172.87,172.84,20.0]
[1717680132871,5.8,172.86,172.84,20.0]
[1717680133076,5.8,172.86,172.82,20.0]
[1717680133247,5.8,172.85,172.82,20.0]
[1717680134267,5.8,172.85,172.81,120.0]
[1717680134469,5.8,172.89,172.79,120.0]
[1717680134470,7.9401,172.89,172.79,120.0]
[1717680134680,5.8,172.83,172.79,120.0]
[1717680135053,5.8,172.83,172.79,126.0738]
[1717680135351,5.8,172.84,172.79,126.0738]
[1717680135668,5.8,172.84,172.8,0.17]
[1717680136050,5.8,172.84,172.8,0.34]
[1717680136250,5.8,172.84,172.8,20.34]
[1717680136471,23.2,172.89,172.81,120.0]
[1717680136668,5.8,172.84,172.81,120.0]
[1717680136865,5.8,172.85,172.81,120.0]
[1717680137959,5.8,172.85,172.8,20.34]
[1717680138158,5.8,172.85,172.8,140.34]
[1717680138374,7.9401,172.89,172.8,140.34]
[1717680138574,5.8,172.84,172.8,140.34]
[1717680138760,5.8,172.83,172.8,20.0]
[1717680138957,5.8,172.83,172.78,120.0]
[1717680138958,5.8,172.83,172.79,20.0]
[1717680139267,5.8,172.83,172.8,120.0]
[1717680140854,25.3401,172.89,172.8,120.0]
[1717680141059,14.9782,172.92,172.8,120.0]
[1717680141060,5.8,172.86,172.81,0.17]
[1717680141266,2.14,172.9,172.81,0.17]
[1717680141467,5.8,172.86,172.81,0.17]
[1717680141672,47.1399,172.91,172.82,120.0]
[1717680141853,10.3761,172.93,172.82,120.0]
[1717680141854,5.8,172.88,172.82,120.0]
[1717680142280,5.8,172.88,172.83,20.0]
[1717680143487,2.1398,172.91,172.84,122.31366575]
[1717680143662,5.8,172.89,172.84,122.31366575]
[1717680144788,2.1397,172.92,172.84,122.31366575]
[1717680144992,5.8,172.89,172.84,122.31366575]
[1717680146093,5.8,172.88,172.84,122.31366575]
[1717680146594,2.1397,172.92,172.84,122.31366575]
[1717680146900,5.8,172.88,172.84,120.0]
[1717680147100,5.8,172.87,172.84,120.0]
[1717680150280,2.1397,172.92,172.84,120.0]
[1717680150493,5.8,172.88,172.84,120.0]
[1717680154198,2.1397,172.92,172.84,120.0]
[1717680154418,5.8,172.88,172.85,1.31820626]
[1717680154985,5.8,172.88,172.84,120.0]
[1717680161186,5.8,172.88,172.84,126.6106]
[1717680163317,5.8,172.88,172.84,120.0]
[1717680165338,5.8,172.87,172.84,120.0]
[1717680181916,2.1397,172.92,172.84,120.0]
[1717680182114,5.8,172.87,172.84,120.0]
[1717680183307,5.8,172.85,172.8,126.3874]
[1717680183514,5.8,172.89,172.8,6.3874]
[1717680183515,5.8,172.84,172.8,6.3874]
[1717680183822,5.8,172.82,172.78,142.2119]
[1717680185054,5.8,172.82,172.79,0.34]
[1717680185224,5.8,172.82,172.79,20.34]
[1717680186148,5.8,172.81,172.79,20.0]
[1717680192351,2.1403,172.87,172.79,20.0]
[1717680192667,5.8,172.81,172.79,20.0]
[1717680193378,47.1403,172.87,172.79,20.0]
[1717680193537,5.8,172.82,172.79,20.0]
[1717680201578,5.8,172.81,172.79,20.0]
[1717680202362,5.8,172.81,172.75,5.8]
[1717680202363,45.0,172.87,172.76,120.0]
[1717680202570,5.8,172.79,172.77,20.0]
[1717680202766,5.8,172.79,172.76,120.0]
[1717680204680,5.8,172.79,172.74,120.0]
[1717680205069,5.8,172.78,172.74,120.0]
[1717680205266,5.8,172.77,172.72,120.0]
[1717680205464,5.8,172.77,172.73,20.0]
[1717680205675,5.8,172.77,172.72,120.0]
[1717680207180,5.8,172.77,172.73,20.0]
[1717680208894,17.2513,172.83,172.73,20.0]
[1717680209085,17.2513,172.83,172.71,0.34]
[1717680209086,5.8,172.76,172.71,0.34]
[1717680209390,5.8,172.76,172.71,20.34]
[1717680209593,5.8,172.76,172.72,120.0]
[1717680210591,5.8,172.77,172.72,120.0]
[1717680211161,2.1412,172.8,172.72,120.0]
[1717680211386,5.8,172.77,172.72,120.0]
[1717680217408,5.8,172.76,172.72,120.0]
[1717680217922,5.8,172.77,172.72,120.0]
[1717680221084,2.1412,172.8,172.72,120.0]
[1717680221284,5.8,172.77,172.72,120.0]
[1717680225518,2.1412,172.8,172.72,120.0]
[1717680225727,5.8,172.77,172.72,120.0]
[1717680230430,2.1413,172.79,172.72,120.0]
[1717680230724,5.8,172.77,172.72,120.0]
[1717680231301,5.8,172.77,172.71,20.34]
[1717680232826,5.8,172.77,172.71,20.0]
[1717680233423,2.1412,172.8,172.71,20.0]
[1717680233424,5.8,172.76,172.71,20.0]
[1717680237214,5.8,172.76,172.72,20.0]
[1717680237416,5.8,172.75,172.7,20.0]
[1717680238018,5.8,172.75,172.69,20.0]
[1717680238217,5.8,172.75,172.69,25.8]
[1717680238636,5.8,172.75,172.69,20.0]
[1717680238822,5.8,172.75,172.69,25.8]
[1717680239739,5.8,172.75,172.69,20.0]
[1717680239909,5.8,172.75,172.69,25.8]
[1717680240737,5.8,172.75,172.7,120.0]
[1717680240914,25.3412,172.8,172.71,20.0]
[1717680241114,45.0,172.79,172.71,20.0]
[1717680241833,5.8,172.76,172.71,20.0]
[1717680245328,45.0,172.79,172.71,20.0]
[1717680245516,5.8,172.76,172.71,20.0]
[1717680246523,2.1412,172.8,172.71,25.8]
[1717680246837,5.8,172.77,172.71,25.8]
[1717680247020,5.8,172.77,172.72,1.73625904]
[1717680247210,2.1413,172.79,172.72,1.73625904]
[1717680247414,5.8,172.77,172.72,1.73625904]
[1717680249252,5.8,172.77,172.71,25.8]
[1717680251838,5.8,172.77,172.71,20.0]
[1717680252241,5.8,172.77,172.71,25.8]
[1717680253122,5.8,172.77,172.71,20.0]
[1717680255661,2.1413,172.79,172.71,20.0]
[1717680255948,5.8,172.77,172.71,20.0]
[1717680256319,5.8,172.76,172.71,20.0]
[1717680256722,5.8,172.76,172.71,25.784]
[1717680259954,45.0,172.81,172.71,32.2185]
[1717680260134,5.8,172.78,172.71,32.2345]
[1717680260445,5.8,172.78,172.71,26.4345]
[1717680260648,5.8,172.78,172.71,32.2345]
[1717680262048,45.0,172.82,172.73,120.0]
[1717680262352,5.8,172.8,172.73,125.8]
[1717680262552,47.141,172.82,172.73,125.8]
[1717680262922,5.8,172.8,172.73,125.8]
[1717680263556,8.6879,172.83,172.75,120.0]
[1717680263754,5.8,172.81,172.76,20.0]
[1717680264136,5.8,172.82,172.76,25.8]
[1717680264539,2.1407,172.84,172.76,25.8]
[1717680264927,5.8,172.82,172.76,25.8]
[1717680265355,5.8,172.81,172.76,20.0]
[1717680265734,5.8,172.79,172.76,20.0]
[1717680267038,2.1407,172.84,172.76,20.0]
[1717680267346,5.8,172.8,172.76,20.0]
[1717680267550,47.1407,172.84,172.76,20.0]
[1717680267863,5.8,172.81,172.76,20.0]
[1717680268457,2.1407,172.84,172.77,120.0]
[1717680268638,5.8,172.81,172.77,120.0]
[1717680269266,2.1407,172.84,172.77,120.0]
[1717680269639,5.8,172.81,172.77,120.0]
[1717680272461,2.1407,172.84,172.77,120.0]
[1717680272764,5.8,172.81,172.77,120.0]
[1717680273069,2.1405,172.86,172.77,120.0]
[1717680273238,5.8,172.83,172.78,2.24374099]
[1717680273833,2.1406,172.85,172.78,2.24374099]
[1717680274052,5.8,172.82,172.78,2.24374099]
[1717680274249,2.1405,172.86,172.78,2.24374099]
[1717680274454,8.2635,172.87,172.78,8.04374099]
[1717680274663,2.1402,172.88,172.79,145.8]
[1717680274945,5.8,172.85,172.8,2.24348129]
[1717680275838,2.1403,172.87,172.8,2.24348129]
[1717680278653,5.8,172.85,172.8,2.24348129]
[1717680280249,5.8,172.85,172.8,8.28868129]
[1717680281376,2.1403,172.87,172.8,8.28868129]
[1717680281557,5.8,172.84,172.8,8.28868129]
[1717680282377,2.1403,172.87,172.8,8.28868129]
[1717680285376,2.1403,172.87,172.8,6.0452]
[1717680289776,5.8,172.83,172.8,6.0452]
[1717680291967,5.8,172.82,172.79,20.0]
[1717680292261,5.8,172.82,172.78,26.2057]
[1717680292465,5.8,172.81,172.78,26.2057]
[1717680292683,49.2804,172.88,172.78,20.0]
[1717680292891,5.8,172.8,172.78,20.0]
[1717680294367,5.8,172.81,172.78,20.0]
[1717680296182,5.8,172.82,172.78,20.0]
[1717680297190,45.0,172.88,172.79,2.31441294]
[1717680297502,5.8,172.85,172.79,120.0]
[1717680297663,5.8,172.85,172.8,8.68208]
[1717680298496,2.1401,172.89,172.8,8.68208]
[1717680298675,2.1402,172.88,172.8,8.68208]
[1717680298992,25.3401,172.89,172.8,8.68208]
[1717680299179,45.0,172.88,172.8,8.68208]
[1717680299782,5.8,172.85,172.8,8.68208]
[1717680300092,4.2792,172.93,172.82,16.6645]
[1717680300391,2.1397,172.92,172.83,137.84051229]
[1717680300589,5.8,172.88,172.83,137.84051229]
[1717680300787,2.1398,172.91,172.84,22.9802]
[1717680301101,5.8,172.88,172.84,22.9802]
[1717680301296,5.8,172.88,172.84,16.6645]
[1717680301497,5.8,172.9,172.86,6.4166]
[1717680302582,2.1396,172.93,172.86,6.4166]
[1717680302986,2.1396,172.93,172.87,1.2139008]
[1717680303200,2.1394,172.94,172.87,1.2139008]
[1717680303575,5.8,172.91,172.87,7.8104008]
[1717680303897,5.8,172.91,172.87,127.8104008]
[1717680304782,5.8,172.91,172.87,126.5965]
[1717680304978,2.1396,172.93,172.87,126.5965]
[1717680305194,5.8,172.91,172.87,6.5965]
[1717680305785,5.8,172.9,172.87,6.5965]
[1717680306277,5.8,172.89,172.87,6.5965]
[1717680306678,5.8,172.89,172.85,141.842]
[1717680308180,2.1396,172.93,172.85,141.842]
[1717680308688,5.8,172.89,172.86,6.2215]
[1717680310307,47.1395,172.94,172.86,6.2215]
[1717680310502,5.8,172.9,172.86,21.5883]
[1717680310902,5.8,172.9,172.86,15.3668]
[1717680311117,5.8,172.9,172.87,7.72642155]
[1717680312092,2.1395,172.94,172.87,7.72642155]
[1717680312291,5.8,172.9,172.87,7.72642155]
[1717680312517,2.1395,172.94,172.87,121.30622155]
[1717680312722,2.1394,172.94,172.87,121.30622155]
[1717680313023,2.1394,172.94,172.88,6.126]
[1717680313024,5.8,172.91,172.88,6.126]
[1717680313226,5.8,172.91,172.89,1.30607044]
[1717680314024,5.8,172.91,172.89,2.31310411]
[1717680314206,5.8,172.91,172.88,6.126]
[1717680314207,2.1395,172.94,172.9,2.31297032]
[1717680315022,4.2785,172.96,172.88,6.126]
[1717680315023,5.8,172.91,172.88,6.126]
[1717680315313,5.8,172.9,172.88,6.126]
[1717680316298,2.1395,172.94,172.88,6.126]
[1717680316517,5.8,172.9,172.88,6.126]
[1717680317128,5.8,172.89,172.87,15.7484]
[1717680318220,5.8,172.89,172.85,135.2503]
[1717680318412,5.8,172.89,172.86,6.6015]
[1717680320837,5.8,172.89,172.85,135.2503]
[1717680320838,5.8,172.88,172.83,120.34]
[1717680321043,5.8,172.87,172.84,20.17]
[1717680323247,5.8,172.87,172.84,26.7185]
[1717680323453,5.8,172.88,172.84,26.7185]
[1717680323817,5.8,172.89,172.84,26.7185]
[1717680324125,5.8,172.89,172.84,41.9043]
[1717680324326,2.1396,172.93,172.84,41.9043]
[1717680324529,5.8,172.89,172.84,41.9043]
[1717680325845,2.1395,172.94,172.85,120.40525002]
[1717680326022,2.1395,172.94,172.87,120.0]
[1717680326428,5.8,172.91,172.87,120.0]
[1717680326737,47.1394,172.95,172.87,120.0]
[1717680326948,5.8,172.91,172.87,120.0]
[1717680327270,2.1394,172.94,172.87,120.0]
[1717680327634,5.8,172.91,172.87,120.0]
[1717680329663,2.1394,172.94,172.87,120.0]
[1717680329831,5.8,172.9,172.87,120.0]
[1717680330953,2.1394,172.94,172.87,120.0]
[1717680331170,47.1394,172.95,172.87,120.0]
[1717680331457,5.8,172.9,172.87,120.0]
[1717680332562,2.1395,172.94,172.87,120.0]
[1717680332861,5.8,172.9,172.87,120.0]
[1717680333053,2.1395,172.94,172.87,120.0]
[1717680333239,5.8,172.9,172.87,120.0]
[1717680336865,2.1395,172.94,172.87,120.0]
[1717680337065,5.8,172.9,172.87,120.0]
[1717680337367,5.8,172.93,172.89,120.0]
[1717680337567,2.1391,172.97,172.91,120.0]
[1717680337739,2.139,172.98,172.91,120.0]
[1717680337941,5.8,172.95,172.91,120.0]
[1717680338339,2.139,172.98,172.91,120.0]
[1717680338570,5.8,172.95,172.91,126.6548]
[1717680338865,6.5459,173.0,172.91,126.6548]
[1717680338866,5.8,172.96,172.91,126.6548]
[1717680339363,2.1389,172.99,172.91,126.6548]
[1717680340062,5.8,172.95,172.91,126.6548]
[1717680341959,5.8,172.94,172.91,126.6548]
[1717680342467,2.1391,172.97,172.9,0.34]
[1717680342468,5.8,172.93,172.9,0.34]
[1717680342669,5.8,172.93,172.9,20.34]
[1717680344269,5.8,172.93,172.91,120.0]
[1717680344971,7.939,172.98,172.91,120.0]
[1717680345172,5.8,172.94,172.91,120.0]
[1717680346184,5.8,172.94,172.91,126.2268]
[1717680348356,5.8,172.92,172.89,120.0]
[1717680348561,5.8,172.91,172.87,135.8296]
[1717680348875,5.8,172.91,172.88,20.0]
[1717680349172,2.1393,172.95,172.88,20.0]
[1717680349173,5.8,172.9,172.88,20.0]
[1717680350979,5.8,172.89,172.88,20.0]
[1717680351179,2.1392,172.96,172.88,20.0]
[1717680351352,5.8,172.91,172.88,20.0]
[1717680355960,47.1391,172.97,172.88,20.0]
[1717680356153,47.1391,172.97,172.88,26.5099]
[1717680356154,5.8,172.92,172.88,26.5099]
[1717680356349,5.8,172.92,172.89,120.0]
[1717680356877,5.8,172.91,172.89,120.0]
[1717680357082,5.8,172.92,172.89,120.0]
[1717680359686,2.1392,172.96,172.89,120.0]
[1717680359865,5.8,172.92,172.89,120.0]
[1717680361779,5.8,172.91,172.89,120.0]
[1717680361988,5.8,172.92,172.89,120.0]
[1717680363475,2.1388,172.99,172.89,142.5258]
[1717680363682,5.8,172.94,172.9,26.5553]
[1717680364574,5.8,172.94,172.91,126.3632]
[1717680364775,5.8,172.94,172.92,20.0]
[1717680364984,5.8,172.95,172.92,20.0]
[1717680366597,8.6846,173.0,172.92,20.0]
[1717680366898,5.8,172.96,172.92,20.0]
[1717680367674,2.1386,173.01,172.93,126.7661]
[1717680367874,5.8,172.96,172.93,126.7661]
[1717680371494,2.1386,173.01,172.93,126.7661]
[1717680371691,5.8,172.97,172.93,126.7661]
[1717680374813,2.1386,173.01,172.93,126.7661]
[1717680375001,5.8,172.97,172.93,126.7661]
[1717680375203,2.1383,173.04,172.95,141.6772]
[1717680375510,5.8,172.99,172.96,26.4176]
[1717680375707,5.8,173.0,172.96,26.4176]
[1717680377334,2.1383,173.04,172.96,26.4176]
[1717680377492,5.8,173.0,172.96,42.8787]
[1717680377893,2.1383,173.04,172.96,42.8787]
[1717680378106,5.8,173.0,172.96,42.8787]
[1717680379093,5.8,172.99,172.96,42.8787]
[1717680379615,5.8,172.99,172.96,26.4176]
[1717680379915,5.8,172.98,172.96,26.4176]
[1717680380125,5.8,172.98,172.96,20.0]
[1717680380803,5.8,172.97,172.94,20.0]
[1717680381047,5.8,172.96,172.94,20.0]
[1717680381317,5.8,172.98,172.94,42.7122]
[1717680381697,5.8,172.99,172.95,126.0258]
[1717680381896,5.8,173.0,172.96,20.0]
[1717680382293,47.1381,173.05,172.96,20.0]
[1717680382600,5.8,173.0,172.96,26.0586]
[1717680383222,2.1382,173.04,172.96,26.0586]
[1717680383517,5.8,173.0,172.96,26.0586]
[1717680385512,5.8,173.0,172.97,6.1175]
[1717680386120,11.5109497,173.09,172.97,126.1175]
[1717680386296,2.1381,173.05,172.98,20.0]
[1717680386697,5.8,173.02,172.98,20.0]
[1717680387421,2.1381,173.05,172.97,141.9736]
[1717680387720,5.8,173.01,172.98,20.0]
[1717680388315,5.8,173.01,172.99,120.0]
[1717680388820,23.2,173.07,172.99,120.0]
[1717680389009,2.1381,173.05,172.99,120.0]
[1717680389329,5.8,173.01,172.99,120.0]
[1717680391217,2.1381,173.05,172.99,120.0]
[1717680391426,5.8,173.01,172.99,120.0]
[1717680391802,2.138,173.06,172.99,120.0]
[1717680392002,5.8,173.02,172.99,120.0]
[1717680393023,2.138,173.06,172.99,120.0]
[1717680393215,5.8,173.02,172.99,126.033]
[1717680394227,5.8,173.02,173.0,6.1611]
[1717680394431,5.8,173.02,173.0,6.3311]
[1717680394722,5.8,173.01,173.0,6.1611]
[1717680394902,5.8,173.01,172.98,20.0]
[1717680395102,5.8,173.01,172.98,26.3742]
[1717680395703,2.1379,173.07,172.99,120.17]
[1717680395911,5.8,173.03,173.01,120.0]
[1717680396523,5.8,173.02,173.01,120.0]
[1717680399319,7.9379,173.07,173.01,120.0]
[1717680399625,25.3379,173.07,173.01,120.0]
[1717680400237,2.1379,173.06,173.01,120.0]
[1717680401127,5.8,173.02,173.01,120.0]
[1717680403122,2.1379,173.07,173.01,120.0]
[1717680403320,5.8,173.02,173.01,120.0]
[1717680405239,5.8,173.07,173.01,120.0]
[1717680405421,5.8,173.06,173.03,120.0]
[1717680405633,0.8227497,173.09,173.03,120.0]
[1717680405828,5.8,173.06,173.03,120.0]
[1717680406529,5.8,173.05,173.03,120.0]
[1717680407040,5.8,173.06,173.03,120.0]
[1717680407419,0.8227497,173.09,173.03,120.0]
[1717680407742,5.8,173.06,173.03,120.0]